[Event "Int SVK-ch Open 2020"]
[Site "Drienica"]
[Date "2020.08.13"]
[Round "5.10"]
[White "Priechodsky, Radovan"]
[Black "Frink Ferenc"]
[Result "0-1"]
[ECO "E10"]
[WhiteElo "2003"]
[BlackElo "2079"]
[Annotator "ChessBase"]
[PlyCount "64"]
[EventDate "2020.08.07"]
[EventType "swiss"]
[EventCountry "SVK"]
[TimeControl "40/5400+30:1800+30"]

1. d4 {[%emt 0:00:00]} Nf6 {[%emt 0:00:00]} 2. c4 {[%emt 0:00:00]} Nc6 {[%emt 0:00:00]} 3. Nf3 {[%emt 0:00:00]} e6 {[%emt 0:00:00]} 4. Nc3 {[%emt 0:00:05]} d6 {[%emt 0:00:15]} 5. e4 {[%emt 0:00:06]} Bd7 {[%emt 0:00:06]} 6. Be2 {[%emt 0:00:08]} h6 {[%emt 0:00:32]} 7. h3 {[%emt 0:00:11]} e5 {[%emt 0:01:30]} 8. d5 {[%emt 0:00:08]} Ne7 {[%emt 0:00:07]} 9. Be3 {[%emt 0:00:14]} Ng6 {[%emt 0:00:26]} 10. Qc2 {[%emt 0:03:24]} Be7 {[%emt 0:00:22]} 11. b4 {[%emt 0:08:44]} O-O {[%emt 0:01:51]} 12. a4 {[%emt 0:24:37]} a5 {[%emt 0:00:53]} 13. bxa5 {[%emt 0:01:27]} Rxa5 {[%emt 0:00:02]} 14. Rb1 {[%emt 0:00:13]} b6 {[%emt 0:00:11]} 15. O-O {[%emt 0:04:28]} Nh5 {[%emt 0:01:36]} 16. Nb5 {[%emt 0:16:53]} Nhf4 {[%emt 0:02:23]} 17. Nxc7 {[%emt 0:14:26]} Rxa4 {[%emt 0:02:44]} 18. Nb5 {[%emt 0:01:22]} Ra6 {[%emt 0:03:50]} 19. Rfc1 {[%emt 0:05:40]} f5 {[%emt 0:02:02]} 20. Bf1 {[%emt 0:00:33]} Bg5 {[%emt 0:03:40]} 21. Nc3 {[%emt 0:03:20]} fxe4 {[%emt 0:08:55]} 22. Nxg5 {[%emt 0:14:10]} hxg5 {[%emt 0:03:53]} 23. Nxe4 {[%emt 0:00:48]} Nh4 {[%emt 0:05:12]} 24. Ra1 {[%emt 0:00:27]} Rxa1 {[%emt 0:01:03]} 25. Rxa1 {[%emt 0:00:01]} Bf5 {[%emt 0:00:32]} 26. Bxf4 {[%emt 0:01:02]} gxf4 {[%emt 0:00:38]} 27. f3 {[%emt 0:00:23]} Bg6 {[%emt 0:02:52]} 28. Ra7 {[%emt 0:00:25]} Nf5 {[%emt 0:00:26]} 29. Qa4 {[%emt 0:00:35]} Ng3 {[%emt 0:23:11]} 30. Qd7 {[%emt 0:00:36]} Qxd7 {[%emt 0:01:24]} 31. Rxd7 {[%emt 0:00:24]} Bxe4 {[%emt 0:00:52]} 32. fxe4 {[%emt 0:00:08]} Ra8 {[%emt 0:00:23]} 0-1

[Event "Int SVK-ch Open 2020"]
[Site "Drienica"]
[Date "2020.08.11"]
[Round "5.10"]
[White "Janik, Marek Tobias"]
[Black "Sedlakova, Ivana"]
[Result "1/2-1/2"]
[ECO "A11"]
[WhiteElo "1600"]
[BlackElo "1983"]
[Annotator "ChessBase"]
[PlyCount "72"]
[EventDate "2020.08.07"]
[EventType "swiss"]
[EventCountry "SVK"]
[SourceTitle "playchess.com"]
[Source "ChessBase"]
[SourceQuality "1"]
[TimeControl "40/5400+30:1800+30"]

1. c4 {[%emt 0:00:00]} c6 {[%emt 0:00:43]} 2. Nc3 {[%emt 0:00:50]} d5 {[%emt 0:01:23]} 3. cxd5 {[%emt 0:03:30]} cxd5 {[%emt 0:00:06]} 4. Nf3 {[%emt 0:00:15]} Nc6 {[%emt 0:01:04]} 5. d4 {[%emt 0:01:00]} Nf6 {[%emt 0:15:50]} 6. e3 {[%emt 0:05:33]} e6 {[%emt 0:07:06]} 7. Bd3 {[%emt 0:02:09]} Bd6 {[%emt 0:00:48]} 8. O-O {[%emt 0:00:44]} O-O {[%emt 0:00:25]} 9. e4 {[%emt 0:02:26]} dxe4 {[%emt 0:03:05]} 10. Nxe4 {[%emt 0:00:31]} Nxe4 {[%emt 0:00:30]} 11. Bxe4 {[%emt 0:00:07]} f5 {[%emt 0:01:10]} 12. Bc2 {[%emt 0:02:14]} Bc7 {[%emt 0:17:54]} 13. Bb3 {[%emt 0:02:35]} Na5 {[%emt 0:05:17]} 14. Bc2 {[%emt 0:01:23]} h6 {[%emt 0:19:23]} 15. b4 {[%emt 0:10:30]} Nc4 {[%emt 0:01:45]} 16. Bb3 {[%emt 0:03:31]} Nb6 {[%emt 0:00:35]} 17. Re1 {[%emt 0:01:23]} Nd5 {[%emt 0:01:07]} 18. a3 {[%emt 0:00:51]} Qf6 {[%emt 0:04:26]} 19. Bc4 {[%emt 0:08:50]} Rd8 {[%emt 0:07:08]} 20. Qb3 {[%emt 0:05:43]} g5 {[%emt 0:01:34]} 21. Bb2 {[%emt 0:02:19]} b6 {[%emt 0:00:19]} 22. Bxd5 {[%emt 0:14:39]} Rxd5 {[%emt 0:00:31]} 23. Rac1 {[%emt 0:01:47]} Bd6 {[%emt 0:01:47]} 24. Ne5 {[%emt 0:12:38]} Bb7 {[%emt 0:00:12]} 25. Rc2 {[%emt 0:02:06]} Re8 {[%emt 0:01:08]} 26. Qa4 {[%emt 0:02:25]} Ra8 {[%emt 0:00:02]} 27. Rce2 {[%emt 0:00:16]} b5 {[%emt 0:01:42]} 28. Qb3 {[%emt 0:00:50]} Bxe5 {[%emt 0:00:32]} 29. Rxe5 {[%emt 0:00:43]} Rxe5 {[%emt 0:00:23]} 30. Rxe5 {[%emt 0:00:11]} Re8 {[%emt 0:04:54]} 31. d5 {[%emt 0:02:23]} Bc8 {[%emt 0:00:29]} 32. Rxe6 {[%emt 0:03:53]} Rxe6 {[%emt 0:00:32]} 33. dxe6 {[%emt 0:00:56]} Bxe6 {[%emt 0:01:21]} 34. Bxf6 {[%emt 0:01:48]} Bxb3 {[%emt 0:00:05]} 35. Kf1 {[%emt 0:00:10]} Kf7 {[%emt 0:00:15]} 36. Bd4 {[%emt 0:00:21]} a6 {[%emt 0:00:04]} 1/2-1/2

[Event "Int SVK-ch Open 2020"]
[Site "Drienica"]
[Date "2020.08.13"]
[Round "5.11"]
[White "Stevik Patrik"]
[Black "Elias David"]
[Result "0-1"]
[ECO "A01"]
[WhiteElo "2076"]
[BlackElo "1781"]
[Annotator "ChessBase"]
[PlyCount "58"]
[EventDate "2020.08.07"]
[EventType "swiss"]
[EventCountry "SVK"]
[TimeControl "40/5400+30:1800+30"]

1. b3 {[%emt 0:02:44]} e5 {[%emt 0:00:00]} 2. Bb2 {[%emt 0:00:07]} Nc6 {[%emt 0:00:00]} 3. e3 {[%emt 0:00:05]} Nf6 {[%emt 0:00:26]} 4. Nf3 {[%emt 0:01:04]} e4 {[%emt 0:01:16]} 5. Nd4 {[%emt 0:00:03]} Nxd4 {[%emt 0:01:00]} 6. Bxd4 {[%emt 0:00:02]} Be7 {[%emt 0:02:58]} 7. c4 {[%emt 0:00:26]} c5 {[%emt 0:00:13]} 8. Bxf6 {[%emt 0:00:58]} Bxf6 {[%emt 0:00:21]} 9. Nc3 {[%emt 0:00:03]} d6 {[%emt 0:04:40]} 10. Qc2 {[%emt 0:00:20]} Bf5 {[%emt 0:01:45]} 11. Rd1 {[%emt 0:01:25]} Bxc3 {[%emt 0:09:02]} 12. Qxc3 {[%emt 0:02:08]} O-O {[%emt 0:01:57]} 13. d3 {[%emt 0:00:49]} Qe7 {[%emt 0:02:40]} 14. dxe4 {[%emt 0:04:10]} Bxe4 {[%emt 0:00:25]} 15. Bd3 {[%emt 0:01:01]} Rad8 {[%emt 0:12:43]} 16. O-O {[%emt 0:03:22]} d5 {[%emt 0:07:40]} 17. cxd5 {[%emt 0:05:35]} Bxd5 {[%emt 0:04:44]} 18. Qc2 {[%emt 0:06:00]} g6 {[%emt 0:08:14]} 19. e4 {[%emt 0:01:41]} Bc6 {[%emt 0:02:03]} 20. f4 {[%emt 0:02:35]} Rd4 {[%emt 0:02:08]} 21. e5 {[%emt 0:02:52]} Rfd8 {[%emt 0:02:44]} 22. Bc4 {[%emt 0:05:34]} Qd7 {[%emt 0:14:51]} 23. e6 {[%emt 0:06:42]} fxe6 {[%emt 0:07:57]} 24. f5 {[%emt 0:03:30]} Rxd1 {[%emt 0:02:34]} 25. Bxe6+ {[%emt 0:03:13]} Qxe6 {[%emt 0:00:26]} 26. fxe6 {[%emt 0:00:47]} R8d2 {[%emt 0:00:44]} 27. Rxd1 {[%emt 0:04:50]} Rxc2 {[%emt 0:00:10]} 28. Rd8+ {[%emt 0:00:06]} Kg7 {[%emt 0:00:34]} 29. e7 {[%emt 0:00:26]} Re2 {[%emt 0:00:12]} 0-1

[Event "Int SVK-ch Open 2020"]
[Site "Drienica"]
[Date "2020.08.11"]
[Round "5.11"]
[White "Durica, Andrej"]
[Black "Ivanecka, Natalia"]
[Result "1-0"]
[ECO "C30"]
[WhiteElo "1911"]
[BlackElo "1641"]
[Annotator "ChessBase"]
[PlyCount "47"]
[EventDate "2020.08.07"]
[EventType "swiss"]
[EventCountry "SVK"]
[SourceTitle "playchess.com"]
[Source "ChessBase"]
[SourceQuality "1"]
[TimeControl "40/5400+30:1800+30"]

1. e4 {[%emt 0:00:00]} e5 {[%emt 0:00:00]} 2. f4 {[%emt 0:00:08]} d6 {[%emt 0:00:07]} 3. Nf3 {[%emt 0:00:09]} Bg4 {[%emt 0:02:34]} 4. Bc4 {[%emt 0:02:08]} Nf6 {[%emt 0:02:34]} 5. d3 {[%emt 0:01:07]} Nc6 {[%emt 0:03:00]} 6. h3 {[%emt 0:03:21]} Bxf3 {[%emt 0:05:50]} 7. Qxf3 {[%emt 0:00:08]} Na5 {[%emt 0:07:51]} 8. Bb3 {[%emt 0:01:39]} Nxb3 {[%emt 0:00:16]} 9. axb3 {[%emt 0:00:02]} Qd7 {[%emt 0:02:42]} 10. Nc3 {[%emt 0:02:58]} a6 {[%emt 0:01:52]} 11. O-O {[%emt 0:02:30]} Be7 {[%emt 0:02:25]} 12. Be3 {[%emt 0:04:22]} O-O-O {[%emt 0:04:37]} 13. Rad1 {[%emt 0:07:05]} Rhg8 {[%emt 0:05:24]} 14. d4 {[%emt 0:00:44]} exf4 {[%emt 0:00:38]} 15. Bxf4 {[%emt 0:00:55]} g5 {[%emt 0:00:08]} 16. Bh2 {[%emt 0:01:23]} g4 {[%emt 0:00:48]} 17. hxg4 {[%emt 0:00:24]} Rxg4 {[%emt 0:01:28]} 18. e5 {[%emt 0:00:48]} Nh5 {[%emt 0:11:27]} 19. e6 {[%emt 0:01:28]} Qxe6 {[%emt 0:01:18]} 20. Rde1 {[%emt 0:00:10]} Qg6 {[%emt 0:07:07]} 21. Rxe7 {[%emt 0:01:03]} Rg8 {[%emt 0:00:59]} 22. Re2 {[%emt 0:10:02]} Qh6 {[%emt 0:05:27]} 23. Qxf7 {[%emt 0:05:32]} b6 {[%emt 0:08:28]} 24. Re8+ {[%emt 0:07:32]} 1-0

[Event "Int SVK-ch Open 2020"]
[Site "Drienica"]
[Date "2020.08.11"]
[Round "5.12"]
[White "Bujna, Martin"]
[Black "Kulich, Daniel"]
[Result "1-0"]
[ECO "D31"]
[WhiteElo "1841"]
[BlackElo "1492"]
[Annotator "NA"]
[PlyCount "65"]
[EventDate "2020.08.07"]
[EventType "swiss"]
[EventCountry "SVK"]
[SourceTitle "playchess.com"]
[Source "ChessBase"]
[SourceQuality "1"]
[TimeControl "40/5400+30:1800+30"]

1. d4 d5 2. c4 e6 3. Nc3 Be7 4. e3 Nf6 5. Nf3 O-O 6. Bd3 Nbd7 7. O-O b6 8. Qc2 Bb7 9. cxd5 exd5 10. Bd2 Re8 11. Ne5 a5 12. Bf5 g6 13. Bd3 Bf8 14. Bb5 Ba6 15. Nxd7 Nxd7 16. Bxa6 Rxa6 17. Nxd5 Ra7 18. e4 Nf6 19. Nxf6+ Qxf6 20. e5 Qe6 21. Be3 f6 22. exf6 Qxf6 23. Rac1 Bd6 24. Qc4+ Kg7 25. d5 Qf5 26. Bd4+ Kh6 27. Rc3 g5 28. Rh3+ Kg6 29. Rf3 Qg4 30. Qd3+ Qe4 31. Rf6+ Kh5 32. Qh3+ Qh4 33. g4# 1-0

[Event "Int SVK-ch Open 2020"]
[Site "Drienica"]
[Date "2020.08.13"]
[Round "5.13"]
[White "Antal, Jakub"]
[Black "Bochnicka Vladimir"]
[Result "0-1"]
[ECO "B32"]
[WhiteElo "1918"]
[BlackElo "2151"]
[Annotator "ChessBase"]
[PlyCount "88"]
[EventDate "2020.08.07"]
[EventType "swiss"]
[EventCountry "SVK"]
[TimeControl "40/5400+30:1800+30"]

1. e4 {[%emt 0:00:00]} c5 {[%emt 0:00:00]} 2. Nf3 {[%emt 0:00:04]} Nc6 {[%emt 0:00:00]} 3. d4 {[%emt 0:00:09]} cxd4 {[%emt 0:00:00]} 4. Nxd4 {[%emt 0:00:04]} e5 {[%emt 0:00:00]} 5. Nb5 {[%emt 0:00:29]} d6 {[%emt 0:00:03]} 6. N1c3 {[%emt 0:00:25]} a6 {[%emt 0:00:06]} 7. Na3 {[%emt 0:00:08]} Be7 {[%emt 0:00:07]} 8. Bd3 {[%emt 0:18:17]} Nf6 {[%emt 0:00:23]} 9. O-O {[%emt 0:08:05]} O-O {[%emt 0:00:14]} 10. Nc4 {[%emt 0:10:30]} b5 {[%emt 0:00:31]} 11. Ne3 {[%emt 0:01:00]} Rb8 {[%emt 0:00:14]} 12. Ncd5 {[%emt 0:05:23]} Be6 {[%emt 0:09:48]} 13. f4 {[%emt 0:13:58]} exf4 {[%emt 0:08:30]} 14. Nxf4 {[%emt 0:04:13]} Ne5 {[%emt 0:01:28]} 15. Kh1 {[%emt 0:02:43]} Rc8 {[%emt 0:14:01]} 16. Bd2 {[%emt 0:07:59]} Nfd7 {[%emt 0:02:00]} 17. Qe2 {[%emt 0:04:50]} Bg5 {[%emt 0:14:53]} 18. Bc3 {[%emt 0:03:06]} Re8 {[%emt 0:19:53]} 19. a4 {[%emt 0:08:02]} Bc4 {[%emt 0:06:12]} 20. axb5 {[%emt 0:03:07]} axb5 {[%emt 0:00:13]} 21. Qf2 {[%emt 0:01:21]} Bh4 {[%emt 0:04:18]} 22. g3 {[%emt 0:01:50]} Bf6 {[%emt 0:00:13]} 23. Rad1 {[%emt 0:02:51]} Nc5 {[%emt 0:03:19]} 24. Bxe5 {[%emt 0:01:58]} Rxe5 {[%emt 0:01:26]} 25. Nfd5 {[%emt 0:01:01]} Nxe4 {[%emt 0:04:43]} 26. Bxe4 {[%emt 0:00:17]} Bxf1 {[%emt 0:03:34]} 27. Bxh7+ {[%emt 0:01:01]} Kxh7 {[%emt 0:00:12]} 28. Rxf1 {[%emt 0:00:12]} Kg8 {[%emt 0:02:48]} 29. Qf3 {[%emt 0:00:29]} Qe8 {[%emt 0:04:08]} 30. Nxf6+ {[%emt 0:00:38]} gxf6 {[%emt 0:00:06]} 31. Ng4 {[%emt 0:00:35]} Qc6 {[%emt 0:00:55]} 32. Nxf6+ {[%emt 0:00:36]} Kh8 {[%emt 0:00:21]} 33. Qxc6 {[%emt 0:00:37]} Rxc6 {[%emt 0:00:07]} 34. Ng4 {[%emt 0:00:25]} Re2 {[%emt 0:01:01]} 35. Rxf7 {[%emt 0:00:10]} Rcxc2 {[%emt 0:00:20]} 36. Rf1 {[%emt 0:00:53]} d5 {[%emt 0:00:22]} 37. h4 {[%emt 0:00:15]} d4 {[%emt 0:01:19]} 38. h5 {[%emt 0:00:23]} d3 {[%emt 0:00:14]} 39. h6 {[%emt 0:00:18]} d2 {[%emt 0:00:24]} 40. Rf8+ {[%emt 0:00:24]} Kh7 {[%emt 0:00:02]} 41. Rf7+ {[%emt 0:01:34]} Kg8 {[%emt 0:01:01]} 42. h7+ {[%emt 0:01:04]} Kxf7 {[%emt 0:00:48]} 43. Ne5+ {[%emt 0:00:23]} Rxe5 {[%emt 0:00:15]} 44. h8=Q {[%emt 0:00:21]} d1=Q# {[%emt 0:00:11]} 0-1

[Event "Int SVK-ch Open 2020"]
[Site "Drienica"]
[Date "2020.08.11"]
[Round "5.13"]
[White "Recky, Norbert"]
[Black "Lehocz, Jozsef Jr."]
[Result "0-1"]
[ECO "B57"]
[WhiteElo "1799"]
[BlackElo "1596"]
[Annotator "NA"]
[PlyCount "78"]
[EventDate "2020.08.07"]
[EventType "swiss"]
[EventCountry "SVK"]
[SourceTitle "playchess.com"]
[Source "ChessBase"]
[SourceQuality "1"]
[TimeControl "40/5400+30:1800+30"]

1. e4 {[%emt 0:00:00]} c5 {[%emt 0:00:00]} 2. Nf3 {[%emt 0:00:00]} d6 {[%emt 0:00:00]} 3. d4 {[%emt 0:00:00]} cxd4 {[%emt 0:00:00]} 4. Nxd4 {[%emt 0:00:00]} Nf6 {[%emt 0:00:06]} 5. Nc3 {[%emt 0:00:00]} Nc6 {[%emt 0:00:46]} 6. Bc4 {[%emt 0:01:46]} Bd7 {[%emt 0:03:40]} 7. O-O {[%emt 0:00:41]} g6 {[%emt 0:02:34]} 8. f3 {[%emt 0:03:58]} Bg7 {[%emt 0:02:49]} 9. Be3 {[%emt 0:00:18]} O-O {[%emt 0:01:16]} 10. Qd2 {[%emt 0:00:07]} a6 {[%emt 0:08:57]} 11. Rfd1 {[%emt 0:13:12]} b5 {[%emt 0:02:11]} 12. Bb3 {[%emt 0:06:23]} Qc7 {[%emt 0:02:25]} 13. Nxc6 {[%emt 0:01:01]} Bxc6 {[%emt 0:01:29]} 14. Bd4 {[%emt 0:00:16]} a5 {[%emt 0:07:05]} 15. Nd5 {[%emt 0:13:05]} Nxd5 {[%emt 0:01:11]} 16. Bxg7 {[%emt 0:01:32]} Kxg7 {[%emt 0:00:17]} 17. Bxd5 {[%emt 0:00:17]} Rfc8 {[%emt 0:01:45]} 18. c3 {[%emt 0:01:51]} Ra6 {[%emt 0:23:11]} 19. Qd3 {[%emt 0:05:31]} Bxd5 {[%emt 0:02:49]} 20. exd5 {[%emt 0:00:55]} Rb6 {[%emt 0:12:45]} 21. Kf2 {[%emt 0:07:18]} b4 {[%emt 0:01:16]} 22. cxb4 {[%emt 0:01:58]} Rxb4 {[%emt 0:00:30]} 23. Rd2 {[%emt 0:00:40]} Qb6+ {[%emt 0:00:33]} 24. Qe3 {[%emt 0:01:06]} Rxb2 {[%emt 0:00:32]} 25. Qxb6 {[%emt 0:01:25]} Rxb6 {[%emt 0:00:03]} 26. Re1 {[%emt 0:01:03]} Kf6 {[%emt 0:00:22]} 27. f4 {[%emt 0:01:43]} Rc5 {[%emt 0:02:17]} 28. g4 {[%emt 0:00:28]} Rb4 {[%emt 0:01:50]} 29. Kf3 {[%emt 0:01:13]} Rcc4 {[%emt 0:01:55]} 30. g5+ {[%emt 0:01:36]} Kf5 {[%emt 0:00:31]} 31. Rxe7 {[%emt 0:00:42]} Rxf4+ {[%emt 0:00:12]} 32. Kg3 {[%emt 0:03:17]} Kxg5 {[%emt 0:03:13]} 33. Ra7 {[%emt 0:01:05]} Ra4 {[%emt 0:02:27]} 34. Ra6 {[%emt 0:04:11]} Rg4+ {[%emt 0:00:37]} 35. Kf2 {[%emt 0:01:01]} Rgd4 {[%emt 0:05:33]} 36. Rxd4 {[%emt 0:01:10]} Rxd4 {[%emt 0:00:01]} 37. Rxa5 {[%emt 0:00:08]} Rd2+ {[%emt 0:00:20]} 38. Kg3 {[%emt 0:00:24]} f5 {[%emt 0:00:27]} 39. a4 {[%emt 0:00:11]} f4+ {[%emt 0:00:31]} 0-1

[Event "Int SVK-ch Open 2020"]
[Site "Drienica"]
[Date "2020.08.13"]
[Round "5.14"]
[White "Durica, Daniel"]
[Black "Ondo Tomas"]
[Result "1-0"]
[ECO "E63"]
[WhiteElo "1935"]
[BlackElo "2065"]
[Annotator "ChessBase"]
[PlyCount "73"]
[EventDate "2020.08.07"]
[EventType "swiss"]
[EventCountry "SVK"]
[TimeControl "40/5400+30:1800+30"]

1. d4 {[%emt 0:03:45]} Nf6 {[%emt 0:00:00]} 2. Nf3 {[%emt 0:00:07]} g6 {[%emt 0:00:00]} 3. g3 {[%emt 0:02:31]} Bg7 {[%emt 0:00:02]} 4. Bg2 {[%emt 0:00:09]} d6 {[%emt 0:00:17]} 5. c4 {[%emt 0:00:59]} O-O {[%emt 0:00:21]} 6. Nc3 {[%emt 0:00:13]} a6 {[%emt 0:00:21]} 7. O-O {[%emt 0:00:19]} Nc6 {[%emt 0:00:43]} 8. a3 {[%emt 0:05:42]} e5 {[%emt 0:05:32]} 9. d5 {[%emt 0:13:34]} Ne7 {[%emt 0:00:26]} 10. e4 {[%emt 0:06:01]} Nd7 {[%emt 0:05:36]} 11. b4 {[%emt 0:03:59]} h6 {[%emt 0:02:33]} 12. Be3 {[%emt 0:17:28]} f5 {[%emt 0:09:05]} 13. exf5 {[%emt 0:07:21]} gxf5 {[%emt 0:03:56]} 14. Rc1 {[%emt 0:01:29]} Ng6 {[%emt 0:04:10]} 15. Qc2 {[%emt 0:08:14]} Qe8 {[%emt 0:10:20]} 16. c5 {[%emt 0:07:24]} Rf7 {[%emt 0:30:07]} 17. Na4 {[%emt 0:06:47]} Qe7 {[%emt 0:11:18]} 18. h4 {[%emt 0:05:34]} Qf6 {[%emt 0:03:20]} 19. h5 {[%emt 0:01:54]} Ne7 {[%emt 0:00:20]} 20. cxd6 {[%emt 0:01:02]} cxd6 {[%emt 0:00:05]} 21. Nh4 {[%emt 0:01:32]} f4 {[%emt 0:07:06]} 22. Bd2 {[%emt 0:00:18]} Qg5 {[%emt 0:00:30]} 23. Qc7 {[%emt 0:00:43]} Qxh5 {[%emt 0:03:06]} 24. Qxd6 {[%emt 0:00:11]} Nf5 {[%emt 0:01:37]} 25. Nxf5 {[%emt 0:00:26]} Qxf5 {[%emt 0:00:10]} 26. Rc7 {[%emt 0:00:48]} f3 {[%emt 0:01:05]} 27. Bh1 {[%emt 0:00:39]} Bf8 {[%emt 0:00:33]} 28. Qe6 {[%emt 0:00:06]} Qh5 {[%emt 0:00:35]} 29. Rfc1 {[%emt 0:00:24]} e4 {[%emt 0:00:43]} 30. Rxc8 {[%emt 0:00:09]} Rxc8 {[%emt 0:00:27]} 31. Rxc8 {[%emt 0:00:02]} Ne5 {[%emt 0:00:34]} 32. Qxh6 {[%emt 0:02:14]} Qxh6 {[%emt 0:00:30]} 33. Bxh6 {[%emt 0:00:02]} Ng6 {[%emt 0:00:23]} 34. Nc5 {[%emt 0:00:37]} Kh7 {[%emt 0:00:32]} 35. Bxf8 {[%emt 0:00:08]} Nxf8 {[%emt 0:00:04]} 36. Nxe4 {[%emt 0:00:30]} Kg6 {[%emt 0:00:34]} 37. Nd2 {[%emt 0:00:25]} 1-0

[Event "Int SVK-ch Open 2020"]
[Site "Drienica"]
[Date "2020.08.11"]
[Round "5.14"]
[White "Tomcikova, Zuzana"]
[Black "Gulas, Gabriel"]
[Result "1-0"]
[ECO "C10"]
[WhiteElo "1785"]
[BlackElo "1472"]
[Annotator "NA"]
[PlyCount "41"]
[EventDate "2020.08.07"]
[EventType "swiss"]
[EventCountry "SVK"]
[SourceTitle "playchess.com"]
[Source "ChessBase"]
[SourceQuality "1"]
[TimeControl "40/5400+30:1800+30"]

1. e4 {[%emt 0:00:00]} e6 {[%emt 0:00:00]} 2. d4 {[%emt 0:00:00]} d5 {[%emt 0:00:00]} 3. Nd2 {[%emt 0:00:04]} dxe4 {[%emt 0:00:04]} 4. Nxe4 {[%emt 0:00:08]} Bd7 {[%emt 0:00:11]} 5. Nf3 {[%emt 0:00:19]} Bc6 {[%emt 0:00:07]} 6. Bd3 {[%emt 0:00:11]} Bxe4 {[%emt 0:00:45]} 7. Bxe4 {[%emt 0:00:22]} c6 {[%emt 0:00:07]} 8. O-O {[%emt 0:03:02]} Nf6 {[%emt 0:00:20]} 9. Bd3 {[%emt 0:01:09]} Bd6 {[%emt 0:00:25]} 10. Qe2 {[%emt 0:02:58]} Qc7 {[%emt 0:03:23]} 11. h3 {[%emt 0:01:25]} Nbd7 {[%emt 0:00:41]} 12. Re1 {[%emt 0:02:50]} h6 {[%emt 0:10:24]} 13. Ne5 {[%emt 0:01:49]} O-O {[%emt 0:03:47]} 14. c3 {[%emt 0:05:43]} c5 {[%emt 0:02:26]} 15. Nxd7 {[%emt 0:01:57]} Qxd7 {[%emt 0:04:15]} 16. dxc5 {[%emt 0:04:58]} Bxc5 {[%emt 0:00:20]} 17. Bf4 {[%emt 0:02:41]} Rad8 {[%emt 0:07:57]} 18. Rad1 {[%emt 0:04:47]} Qa4 {[%emt 0:06:57]} 19. b4 {[%emt 0:01:00]} Nd5 {[%emt 0:02:44]} 20. Bxh6 {[%emt 0:29:00]} Nf6 {[%emt 0:16:45]} 21. Bc1 {[%emt 0:02:24]} 1-0

[Event "Int SVK-ch Open 2020"]
[Site "Drienica"]
[Date "2020.08.13"]
[Round "5.15"]
[White "Brnusak Tomas"]
[Black "Sankova, Stella"]
[Result "0-1"]
[ECO "A22"]
[WhiteElo "2064"]
[BlackElo "1997"]
[Annotator "ChessBase"]
[PlyCount "64"]
[EventDate "2020.08.07"]
[EventType "swiss"]
[EventCountry "SVK"]
[TimeControl "40/5400+30:1800+30"]

1. c4 {[%emt 0:01:29]} e5 {[%emt 0:06:12]} 2. Nc3 {[%emt 0:00:20]} Nf6 {[%emt 0:00:05]} 3. g3 {[%emt 0:00:31]} Bb4 {[%emt 0:00:16]} 4. Bg2 {[%emt 0:00:50]} Bxc3 {[%emt 0:00:52]} 5. dxc3 {[%emt 0:00:29]} O-O {[%emt 0:00:11]} 6. e3 {[%emt 0:00:34]} d6 {[%emt 0:02:00]} 7. Ne2 {[%emt 0:00:44]} Nc6 {[%emt 0:00:49]} 8. O-O {[%emt 0:00:50]} Bg4 {[%emt 0:04:22]} 9. h3 {[%emt 0:02:59]} Be6 {[%emt 0:00:21]} 10. b3 {[%emt 0:00:11]} a5 {[%emt 0:00:10]} 11. a4 {[%emt 0:00:08]} Nd7 {[%emt 0:09:04]} 12. Ba3 {[%emt 0:01:54]} f5 {[%emt 0:08:38]} 13. Ra2 {[%emt 0:04:23]} Qf6 {[%emt 0:06:58]} 14. f4 {[%emt 0:05:01]} Rf7 {[%emt 0:01:13]} 15. e4 {[%emt 0:06:13]} g6 {[%emt 0:08:03]} 16. Kh2 {[%emt 0:07:29]} Qg7 {[%emt 0:03:49]} 17. Rd2 {[%emt 0:09:21]} fxe4 {[%emt 0:10:32]} 18. Bxe4 {[%emt 0:01:25]} Qh6 {[%emt 0:00:21]} 19. Bg2 {[%emt 0:18:13]} Nf6 {[%emt 0:00:37]} 20. Rh1 {[%emt 0:00:32]} Ng4+ {[%emt 0:04:20]} 21. Kg1 {[%emt 0:01:09]} Ne3 {[%emt 0:00:07]} 22. Qe1 {[%emt 0:01:53]} Raf8 {[%emt 0:07:33]} 23. Qf2 {[%emt 0:09:25]} Nxg2 {[%emt 0:04:27]} 24. Qxg2 {[%emt 0:00:28]} g5 {[%emt 0:02:27]} 25. fxe5 {[%emt 0:01:54]} Rf1+ {[%emt 0:06:08]} 26. Qxf1 {[%emt 0:00:21]} Rxf1+ {[%emt 0:00:08]} 27. Kxf1 {[%emt 0:01:39]} Bxh3+ {[%emt 0:00:30]} 28. Ke1 {[%emt 0:00:30]} Nxe5 {[%emt 0:00:30]} 29. Ng1 {[%emt 0:01:02]} g4 {[%emt 0:01:34]} 30. Kd1 {[%emt 0:01:24]} Qe3 {[%emt 0:01:01]} 31. Ne2 {[%emt 0:01:11]} Bg2 {[%emt 0:02:06]} 32. Rh2 {[%emt 0:01:15]} Nf3 {[%emt 0:01:25]} 0-1

[Event "Int SVK-ch Open 2020"]
[Site "Drienica"]
[Date "2020.08.11"]
[Round "5.15"]
[White "Kubikova, Nina"]
[Black "Furman, Slavomir"]
[Result "0-1"]
[ECO "C02"]
[WhiteElo "1256"]
[BlackElo "1760"]
[Annotator "NA"]
[PlyCount "64"]
[EventDate "2020.08.07"]
[EventType "swiss"]
[EventCountry "SVK"]
[SourceTitle "playchess.com"]
[Source "ChessBase"]
[SourceQuality "1"]
[TimeControl "40/5400+30:1800+30"]

1. e4 {[%emt 0:00:00]} e6 {[%emt 0:00:00]} 2. d4 {[%emt 0:00:00]} d5 {[%emt 0:00:00]} 3. e5 {[%emt 0:00:07]} c5 {[%emt 0:00:05]} 4. c3 {[%emt 0:00:10]} Nc6 {[%emt 0:00:19]} 5. Nf3 {[%emt 0:00:15]} Bd7 {[%emt 0:00:16]} 6. Be2 {[%emt 0:00:38]} cxd4 {[%emt 0:00:46]} 7. cxd4 {[%emt 0:00:10]} Nge7 {[%emt 0:00:28]} 8. Nc3 {[%emt 0:00:32]} a6 {[%emt 0:00:43]} 9. a4 {[%emt 0:00:55]} Qb6 {[%emt 0:04:09]} 10. Rb1 {[%emt 0:20:30]} Nf5 {[%emt 0:03:16]} 11. Be3 {[%emt 0:00:09]} Be7 {[%emt 0:07:48]} 12. O-O {[%emt 0:00:26]} O-O {[%emt 0:03:44]} 13. Bd3 {[%emt 0:02:59]} Nxe3 {[%emt 0:01:53]} 14. fxe3 {[%emt 0:00:14]} f6 {[%emt 0:02:44]} 15. Nh4 {[%emt 0:08:13]} Be8 {[%emt 0:18:03]} 16. Qg4 {[%emt 0:14:09]} Nb4 {[%emt 0:06:43]} 17. Bf5 {[%emt 0:14:36]} Bf7 {[%emt 0:08:01]} 18. Rf3 {[%emt 0:15:00]} fxe5 {[%emt 0:17:21]} 19. dxe5 {[%emt 0:07:42]} h5 {[%emt 0:11:01]} 20. Qg3 {[%emt 0:07:51]} Bxh4 {[%emt 0:00:25]} 21. Qxh4 {[%emt 0:00:07]} exf5 {[%emt 0:00:16]} 22. Rxf5 {[%emt 0:00:40]} Bg6 {[%emt 0:00:57]} 23. Rxf8+ {[%emt 0:01:43]} Rxf8 {[%emt 0:00:06]} 24. Re1 {[%emt 0:00:47]} a5 {[%emt 0:00:51]} 25. Qh3 {[%emt 0:00:51]} d4 {[%emt 0:01:52]} 26. exd4 {[%emt 0:00:29]} Qxd4+ {[%emt 0:00:09]} 27. Kh1 {[%emt 0:00:30]} Nd3 {[%emt 0:01:35]} 28. Qe6+ {[%emt 0:02:12]} Kh7 {[%emt 0:00:11]} 29. Qd6 {[%emt 0:01:31]} Nf2+ {[%emt 0:00:24]} 30. Kg1 {[%emt 0:00:08]} Nh3+ {[%emt 0:00:08]} 31. Kh1 {[%emt 0:00:11]} Qg1+ {[%emt 0:00:06]} 32. Rxg1 {[%emt 0:00:15]} Nf2# 0-1